fUSD/lending_fUSD_20260408
["ID","MTS","AMOUNT","RATE_DAILY","PERIOD"]
[420043036,1775631041886,-362.7319822,0.00010686,2]
[420043037,1775631041896,-250.0,0.00010688,2]
[420043038,1775631041906,-193.0,0.00010688,2]
[420043039,1775631041915,-5000.0,0.00010688,2]
[420043040,1775631041925,-250.0,0.00010688,2]
[420043041,1775631041934,-5000.0,0.00010688,2]
[420043042,1775631041943,-250.0,0.00010688,2]
[420043043,1775631041953,-1669.0,0.00010703,2]
[420043044,1775631041963,-178.99,0.00010704,2]
[420043045,1775631041972,-200.0,0.00010711,2]
[420043046,1775631041981,-200.0,0.00010713,2]
[420043047,1775631041991,-289.0,0.00010724,2]
[420043048,1775631042000,-1331.0,0.00010745,2]
[420043049,1775631042010,-207.0,0.00010767,2]
[420043050,1775631042019,-1126.0,0.00010788,2]
[420043051,1775631042028,-160.05377523,0.00010796,2]
[420043052,1775631042038,-1422.0,0.00010809,2]
[420043053,1775631042047,-200.0,0.00010818,2]
[420043054,1775631042057,-501.73893264,0.00010821,2]
[420043055,1775631042066,-550.3869963,0.00010821,2]
[420043056,1775631042076,-1000.0,0.00010821,2]
[420043057,1775631042085,-922.86,0.00010821,2]
[420043058,1775631042095,-1084.0,0.00010831,2]
[420043059,1775631042104,-200.0,0.0001084,2]
[420043060,1775631042409,-1243.57659104,0.0001084,2]
[420043061,1775631042420,-1852.0,0.00010852,2]
[420043062,1775631042429,-1273.0,0.00010873,2]
[420043063,1775631042439,-160.0,0.00010877,2]
[420043064,1775631042448,-348.606846,0.00010877,2]
[420043065,1775631042458,-537.213693,0.00010877,2]
[420043066,1775631042468,-160.0,0.00010877,2]
[420043067,1775631042478,-2164.223455,0.00010877,2]
[420043068,1775631042488,-4168.446911,0.00010877,2]
[420043069,1775631042498,-500.0,0.00010881,2]
[420043070,1775631042508,-265.0,0.00010895,2]
[420043071,1775631042517,-150.0,0.000109,2]
[420043072,1775631042527,-371.0,0.000109,2]
[420043073,1775631042537,-420.0,0.000109,2]
[420043074,1775631042547,-1680.0,0.000109,2]
[420043075,1775631042557,-420.0,0.000109,2]
[420043076,1775631042566,-1084.0,0.00010916,2]
[420043077,1775631042576,-200.0,0.00010926,2]
[420043078,1775631042585,-1627.0,0.00010937,2]
[420043079,1775631042595,-944.0,0.00010958,2]
[420043080,1775631042605,-500.0,0.00010959,2]
[420043081,1775631042615,-180.25604346,0.00010989,2]
[420043082,1775631042624,-261.60902526,0.00010989,2]
[420043083,1775631042636,-214.65204988,0.00010989,2]
[420043084,1775631042646,-172.81209162,0.00010989,2]
[420043085,1775631042656,-151.502,0.00010999,2]
[420043086,1775631042666,-255.0,0.00011064,2]
[420043087,1775631042675,-420.0,0.00011064,2]
[420043088,1775631042685,-922.86,0.00011095,2]
[420043089,1775631042695,-33107.94811017,0.00011099,2]
[420043090,1775631042705,-33107.94811013,0.00011099,2]
[420043091,1775631042715,-33107.94811013,0.00011099,2]
[420043092,1775631042725,-33107.94811013,0.00011099,2]
[420043093,1775631042734,-33107.94811013,0.00011099,2]
[420043094,1775631042744,-33107.94811013,0.00011099,2]
[420043095,1775631042754,-33107.94811013,0.00011099,2]
[420043096,1775631042763,-33107.94811013,0.00011099,2]
[420043097,1775631042773,-33107.94811013,0.00011099,2]
[420043098,1775631042783,-33107.94811013,0.00011099,2]
[420043099,1775631042792,-12179.12217489,0.00011099,2]
[420043100,1775631042802,-12179.12217488,0.00011099,2]
[420043101,1775631042812,-12179.12217488,0.00011099,2]
[420043102,1775631042822,-12179.12217488,0.00011099,2]
[420043103,1775631042832,-12179.12217488,0.00011099,2]
[420043104,1775631042843,-12179.12217488,0.00011099,2]
[420043105,1775631042853,-12179.12217488,0.00011099,2]
[420043106,1775631042864,-12179.12217488,0.00011099,2]
[420043108,1775631042874,-12179.12217488,0.00011099,2]
[420043110,1775631042885,-12179.12217488,0.00011099,2]
[420043112,1775631042895,-500.0,0.00011155,2]
[420043114,1775631042905,-1500.0,0.00011168,2]
[420043115,1775631042916,-1500.0,0.00011168,2]
[420043116,1775631042926,-1500.0,0.00011168,2]
[420043117,1775631042936,-1500.0,0.00011168,2]
[420043118,1775631042946,-1500.0,0.00011168,2]
[420043119,1775631042956,-1500.0,0.00011168,2]
[420043120,1775631042966,-160.0,0.00011218,2]
[420043121,1775631042976,-568.720965,0.00011218,2]
[420043122,1775631042986,-977.441931,0.00011218,2]
[420043123,1775631042996,-197.421536,0.00011218,2]
[420043124,1775631043006,-277.52815516,0.0001122,2]
[420043125,1775631043015,-627.38702821,0.0001122,2]
[420043126,1775631043026,-922.86,0.00011368,2]
[420043127,1775631043036,-500.87166627,0.00011368,2]
[420043128,1775631043046,-200.0,0.00011388,2]
[420043129,1775631043057,-1289.58892491,0.00011388,2]
[420043130,1775631043068,-368.0,0.00011393,2]
[420043131,1775631043079,-498.0,0.00011415,2]
[420043132,1775631043089,-713.059459,0.00011421,2]
[420043133,1775631043100,-2951.213803,0.00011421,2]
[420043134,1775631043110,-500.0,0.00011429,2]
[420043135,1775631043120,-181.0,0.00011438,2]
[420043136,1775631043132,-5789.29,0.00011507,2]
[420043137,1775631043142,-1600.0,0.000116,2]
[420043138,1775631043152,-922.86,0.00011642,2]
[420043139,1775631043163,-309.0,0.00011669,2]
[420043141,1775631043173,-213.0,0.00011692,2]
[420043142,1775631043183,-500.0,0.00011703,2]
[420043144,1775631043194,-363.0,0.00011715,2]
[420043145,1775631043204,-1015.28558372,0.00011716,2]
[420043146,1775631043216,-2000.0,0.00011716,2]
[420043147,1775631043227,-2037.33935184,0.00011716,2]
[420043148,1775631043239,-2000.0,0.00011716,2]
[420043150,1775631043249,-1894.44940628,0.00011716,2]
[420043151,1775631043260,-2000.0,0.00011716,2]
[420043152,1775631043271,-298.0,0.00011738,2]
[420043153,1775631043282,-488.0,0.00011761,2]
[420043154,1775631043293,-150.0,0.00011762,2]
[420043155,1775631043303,-150.11484194,0.00011762,2]
[420043156,1775631043314,-150.0,0.00011762,2]
[420043157,1775631043325,-150.0,0.00011762,2]
[420043158,1775631043336,-150.12907206,0.00011762,2]
[420043159,1775631043347,-150.0,0.00011762,2]
[420043160,1775631043358,-150.0,0.00011762,2]
[420043161,1775631043369,-150.0,0.00011762,2]
[420043162,1775631043380,-150.0,0.00011762,2]
[420043163,1775631043390,-150.0,0.00011762,2]
[420043164,1775631043401,-150.13966067,0.00011762,2]
[420043165,1775631043412,-150.0,0.00011762,2]
[420043166,1775631043423,-150.0,0.00011762,2]
[420043167,1775631043433,-600.0,0.00011773,2]
[420043168,1775631043444,-775.528589,0.00011779,2]
[420043169,1775631043455,-150.0,0.00011789,2]
[420043170,1775631043465,-150.0,0.00011789,2]
[420043171,1775631043475,-150.0,0.00011795,2]
[420043172,1775631043486,-150.0,0.00011796,2]
[420043173,1775631043497,-150.0,0.00011799,2]
[420043174,1775631043508,-150.0,0.00011799,2]
[420043175,1775631043518,-150.0,0.00011816,2]
[420043176,1775631043529,-150.0,0.00011817,2]
[420043177,1775631043540,-150.0,0.00011829,2]
[420043178,1775631043550,-150.0,0.0001183,2]
[420043179,1775631043561,-150.0,0.00011836,2]
[420043180,1775631043572,-150.0,0.00011836,2]
[420043181,1775631043583,-150.0,0.00011843,2]
[420043182,1775631043593,-150.0,0.00011845,2]
[420043183,1775631043604,-150.0,0.00011862,2]
[420043184,1775631043614,-150.0,0.00011862,2]
[420043185,1775631043625,-150.0,0.00011865,2]
[420043186,1775631043636,-150.0,0.00011871,2]
[420043187,1775631043647,-150.0,0.00011873,2]
[420043188,1775631043657,-150.0,0.00011874,2]
[420043189,1775631043668,-150.0,0.00011874,2]
[420043190,1775631043679,-154.31,0.00011886,2]
[420043191,1775631043690,-150.0,0.00011896,2]
[420043192,1775631043701,-150.0,0.00011898,2]
[420043193,1775631043711,-150.0,0.00011899,2]
[420043194,1775631043722,-150.0,0.00011901,2]
[420043195,1775631043732,-150.0,0.00011911,2]
[420043196,1775631043742,-150.0,0.00011911,2]
[420043197,1775631043752,-922.86,0.00011916,2]
[420043198,1775631043763,-150.0,0.00011925,2]
[420043199,1775631043773,-150.0,0.00011928,2]
[420043200,1775631043784,-150.0,0.00011929,2]
[420043201,1775631043794,-150.0,0.00011934,2]
[420043202,1775631043805,-200.0,0.00011936,2]
[420043203,1775631043815,-709.82439652,0.00011936,2]
[420043204,1775631043826,-150.0,0.00011948,2]
[420043205,1775631043837,-150.0,0.00011948,2]
[420043206,1775631043849,-150.0,0.00011952,2]
[420043207,1775631043860,-150.0,0.00011956,2]
[420043208,1775631043871,-150.0,0.00011963,2]
[420043209,1775631043882,-150.0,0.00011963,2]
[420043210,1775631043894,-150.0,0.00011968,2]
[420043211,1775631043906,-500.0,0.00011977,2]
[420043212,1775631043917,-150.0,0.00011979,2]
[420043213,1775631043928,-150.0,0.00011984,2]
[420043214,1775631043939,-150.0,0.00011986,2]
[420043215,1775631043951,-150.0,0.00011986,2]
[420043216,1775631043961,-587.0,0.0001199,2]
[420043217,1775631043972,-2351.0,0.0001199,2]
[420043218,1775631043982,-150.0,0.00011996,2]
[420043219,1775631043993,-150.0,0.00012002,2]
[420043220,1775631044003,-150.0,0.00012007,2]
[420043221,1775631044013,-150.0,0.00012012,2]
[420043222,1775631044027,-150.0,0.00012023,2]
[420043223,1775631044038,-150.0,0.00012023,2]
[420043224,1775631044049,-150.0,0.0001203,2]
[420043225,1775631044059,-150.0,0.00012034,2]
[420043226,1775631044070,-150.0,0.00012037,2]
[420043227,1775631044080,-150.0,0.0001204,2]
[420043228,1775631044091,-150.0,0.0001206,2]
[420043229,1775631044101,-150.0,0.0001206,2]
[420043230,1775631044112,-150.0,0.00012061,2]
[420043231,1775631044123,-150.0,0.00012063,2]
[420043232,1775631044133,-150.0,0.00012063,2]
[420043233,1775631044144,-150.0,0.00012068,2]
[420043234,1775631044155,-150.0,0.00012071,2]
[420043235,1775631044164,-150.0,0.00012088,2]
[420043236,1775631044175,-150.0,0.00012088,2]
[420043237,1775631044185,-150.0,0.00012095,2]
[420043238,1775631044196,-150.0,0.00012097,2]
[420043239,1775631044206,-150.0,0.00012098,2]
[420043240,1775631044217,-150.0,0.00012098,2]
[420043241,1775631044228,-150.0,0.00012106,2]
[420043242,1775631044239,-150.0,0.00012116,2]
[420043243,1775631044250,-150.0,0.00012123,2]
[420043244,1775631044261,-600.0,0.0001213,2]
[420043245,1775631044271,-150.0,0.0001213,2]
[420043246,1775631044282,-150.0,0.00012135,2]
[420043247,1775631044292,-150.0,0.00012135,2]
[420043248,1775631044303,-150.0,0.0001214,2]
[420043249,1775631044313,-150.0,0.00012143,2]
[420043250,1775631044323,-150.0,0.00012151,2]
[420043251,1775631044334,-150.0,0.00012164,2]
[420043252,1775631044344,-150.0,0.00012164,2]
[420043253,1775631044355,-587.0,0.00012169,2]
[420043254,1775631044365,-150.0,0.0001217,2]
[420043255,1775631044374,-433.0,0.00012171,2]
[420043256,1775631044385,-150.0,0.00012172,2]
[420043257,1775631044396,-150.0,0.00012172,2]
[420043258,1775631044406,-150.0,0.00012174,2]
[420043259,1775631044417,-150.0,0.00012179,2]
[420043260,1775631044428,-922.86785208,0.0001219,2]
[420043261,1775631044439,-150.0,0.00012197,2]
[420043262,1775631044449,-150.0,0.00012197,2]
[420043263,1775631044460,-168.4438,0.000122,2]
[420043264,1775631044470,-150.0,0.00012207,2]
[420043265,1775631044480,-150.0,0.00012209,2]
[420043266,1775631044490,-150.0,0.0001221,2]
[420043267,1775631044500,-150.0,0.0001221,2]
[420043268,1775631044510,-150.0,0.00012224,2]
[420043269,1775631044521,-150.0,0.00012231,2]
[420043270,1775631044530,-150.0,0.00012234,2]
[420043271,1775631044540,-150.0,0.00012243,2]
[420043272,1775631044550,-150.0,0.00012247,2]
[420043273,1775631044560,-150.0,0.00012247,2]
[420043274,1775631044570,-500.0,0.00012251,2]
[420043275,1775631044581,-150.0,0.00012252,2]
[420043276,1775631044591,-150.0,0.00012262,2]
[420043277,1775631044601,-150.0,0.00012264,2]
[420043278,1775631044611,-150.0,0.00012264,2]
[420043279,1775631044622,-2500.0,0.00012264,2]
[420043280,1775631044633,-2500.0,0.00012264,2]
[420043281,1775631044643,-2500.0,0.00012264,2]
[420043282,1775631044653,-150.0,0.00012278,2]
[420043283,1775631044663,-150.0,0.00012279,2]
[420043284,1775631044673,-150.0,0.00012284,2]
[420043285,1775631044683,-150.0,0.00012284,2]
[420043286,1775631044692,-150.0,0.0001229,2]
[420043287,1775631044703,-150.0,0.00012298,2]
[420043288,1775631044713,-150.0,0.00012306,2]
[420043289,1775631044723,-150.0,0.00012312,2]
[420043290,1775631044733,-150.0,0.00012318,2]
[420043291,1775631044743,-150.0,0.00012322,2]
[420043292,1775631044753,-150.0,0.00012322,2]
[420043293,1775631044763,-150.0,0.00012331,2]
[420043294,1775631044774,-150.0,0.00012333,2]
[420043295,1775631044784,-150.0,0.00012346,2]
[420043296,1775631044794,-150.0,0.00012346,2]
[420043297,1775631044804,-150.0,0.00012359,2]
[420043298,1775631044815,-150.0,0.00012359,2]
[420043299,1775631044825,-150.0,0.00012361,2]
[420043300,1775631044835,-150.0,0.00012365,2]
[420043301,1775631044844,-150.0,0.00012365,2]
[420043302,1775631044854,-150.0,0.00012373,2]
[420043303,1775631044864,-150.0,0.00012381,2]
[420043304,1775631044874,-150.0,0.00012388,2]
[420043305,1775631044884,-150.0,0.00012396,2]
[420043306,1775631044895,-150.0,0.00012396,2]
[420043307,1775631045020,-150.0,0.00012398,2]
[420043308,1775631045030,-150.0,0.00012401,2]
[420043309,1775631045038,-150.0,0.00012415,2]
[420043310,1775631045047,-150.0,0.00012415,2]
[420043311,1775631045057,-150.0,0.00012415,2]
[420043312,1775631045067,-150.0,0.00012415,2]
[420043313,1775631045077,-150.0,0.00012415,2]
[420043314,1775631045087,-150.0,0.00012429,2]
[420043315,1775631045096,-150.0,0.00012432,2]
[420043316,1775631045106,-150.0,0.00012434,2]
[420043317,1775631045116,-150.0,0.00012434,2]
[420043318,1775631045125,-150.0,0.00012442,2]
[420043319,1775631045136,-150.0,0.00012449,2]
[420043320,1775631045145,-150.0,0.00012457,2]
[420043321,1775631045154,-150.0,0.00012465,2]
[420043322,1775631045164,-150.0,0.00012465,2]
[420043323,1775631045174,-150.0,0.0001247,2]
[420043324,1775631045183,-150.0,0.00012471,2]
[420043325,1775631045192,-150.0,0.00012471,2]
[420043326,1775631045202,-150.0,0.00012484,2]
[420043327,1775631045213,-201.60184993,0.00012484,2]
[420043328,1775631045222,-150.0,0.00012485,2]
[420043329,1775631045233,-150.0,0.00012497,2]
[420043330,1775631045243,-150.0,0.00012499,2]
[420043331,1775631045252,-150.0,0.00012508,2]
[420043332,1775631045263,-150.0,0.00012508,2]
[420043333,1775631045273,-370.790918,0.00012508,2]
[420043334,1775631045283,-1534.631177,0.00012508,2]
[420043335,1775631045292,-150.0,0.00012512,2]
[420043336,1775631045303,-150.0,0.00012518,2]
[420043337,1775631045312,-150.0,0.00012524,2]
[420043338,1775631045322,-287.35,0.00012524,2]
[420043339,1775631045333,-500.0,0.00012525,2]
[420043340,1775631045343,-150.0,0.00012532,2]
[420043341,1775631045353,-150.0,0.0001254,2]
[420043342,1775631045362,-150.0,0.00012546,2]
[420043343,1775631045373,-150.0,0.00012546,2]
[420043344,1775631045382,-150.0,0.00012551,2]
[420043345,1775631045392,-150.0,0.00012553,2]
[420043346,1775631045402,-287.35,0.0001256,2]
[420043347,1775631045412,-150.0,0.00012566,2]
[420043348,1775631045422,-150.0,0.00012566,2]
[420043349,1775631045431,-200.0,0.00012568,2]
[420043350,1775631045441,-200.0,0.00012568,2]
[420043351,1775631045451,-200.0,0.00012568,2]
[420043352,1775631045461,-200.0,0.00012568,2]
[420043353,1775631045471,-200.0,0.00012568,2]
[420043354,1775631045483,-200.0,0.00012568,2]
[420043355,1775631045493,-200.0,0.00012568,2]
[420043356,1775631045503,-203.0,0.00012568,2]
[420043357,1775631045512,-150.0,0.00012568,2]
[420043358,1775631045522,-150.0,0.00012578,2]
[420043359,1775631045532,-150.0,0.00012583,2]
[420043360,1775631045543,-150.0,0.00012583,2]
[420043361,1775631045553,-150.0,0.00012587,2]
[420043362,1775631045563,-150.0,0.00012596,2]
[420043363,1775631045573,-287.35,0.00012597,2]
[420043364,1775631045583,-150.0,0.00012599,2]
[420043365,1775631045592,-150.0,0.00012606,2]
[420043366,1775631045602,-150.0,0.00012617,2]
[420043367,1775631045612,-150.0,0.00012617,2]
[420043368,1775631045622,-150.0,0.00012617,2]
[420043369,1775631045631,-150.0,0.00012617,2]
[420043370,1775631045641,-150.0,0.00012617,2]
[420043371,1775631045651,-150.0,0.00012617,2]
[420043372,1775631045661,-150.0,0.00012617,2]
[420043373,1775631045671,-150.0,0.00012617,2]
[420043374,1775631045682,-228.0,0.00012617,2]
[420043375,1775631045692,-150.0,0.00012617,2]
[420043376,1775631045702,-150.0,0.00012617,2]
[420043377,1775631045712,-285.50676789,0.00012617,2]
[420043378,1775631045722,-150.0,0.0001262,2]
[420043379,1775631045732,-150.0,0.0001262,2]
[420043380,1775631045743,-150.0,0.00012621,2]
[420043381,1775631045753,-150.0,0.00012624,2]
[420043382,1775631045763,-150.0,0.00012633,2]
[420043383,1775631045774,-150.0,0.00012633,2]
[420043384,1775631045783,-150.0,0.00012651,2]
[420043385,1775631045794,-150.0,0.00012656,2]
[420043386,1775631045803,-150.0,0.00012658,2]
[420043387,1775631045814,-150.0,0.00012658,2]
[420043388,1775631045823,-150.0,0.0001266,2]
[420043389,1775631045833,-150.0,0.00012666,2]
[420043390,1775631045843,-150.0,0.00012666,2]
[420043391,1775631045852,-150.0,0.00012679,2]
[420043392,1775631045861,-150.0,0.00012687,2]
[420043393,1775631045871,-150.0,0.0001269,2]
[420043394,1775631045881,-250.0,0.00012695,2]
[420043395,1775631045890,-250.0,0.00012695,2]
[420043396,1775631045901,-250.0,0.00012695,2]
[420043397,1775631045910,-250.0,0.00012695,2]
[420043398,1775631045919,-250.0,0.00012695,2]
[420043399,1775631045929,-250.0,0.00012695,2]
[420043400,1775631045939,-250.0,0.00012695,2]
[420043401,1775631045949,-250.0,0.00012695,2]
[420043402,1775631045959,-250.0,0.00012695,2]
[420043403,1775631045968,-170.0,0.00012695,2]
[420043404,1775631045978,-150.0,0.00012695,2]
[420043405,1775631045989,-150.0,0.00012695,2]
[420043406,1775631045998,-150.0,0.000127,2]
[420043407,1775631046008,-150.0,0.00012707,2]
[420043408,1775631046018,-150.0,0.00012715,2]
[420043409,1775631046028,-150.0,0.00012725,2]
[420043410,1775631046038,-150.0,0.00012732,2]
[420043411,1775631046048,-150.0,0.00012732,2]
[420043412,1775631046058,-150.0,0.00012733,2]
[420043413,1775631046067,-150.0,0.00012735,2]
[420043414,1775631046076,-150.0,0.00012742,2]
[420043415,1775631046086,-150.0,0.00012742,2]
[420043416,1775631046095,-150.0,0.00012759,2]
[420043417,1775631046105,-1600.0,0.0001276,2]
[420043418,1775631046114,-150.0,0.00012763,2]
[420043419,1775631046124,-150.0,0.00012767,2]
[420043420,1775631046133,-150.0,0.00012767,2]
[420043421,1775631046143,-150.0,0.00012769,2]
[420043422,1775631046153,-150.0,0.0001277,2]
[420043423,1775631046163,-150.0,0.0001277,2]
[420043424,1775631046182,-150.0,0.0001279,2]
[420043425,1775631046194,-150.0,0.00012793,2]
[420043426,1775631046204,-150.0,0.00012796,2]
[420043427,1775631046213,-500.0,0.00012799,2]
[420043428,1775631046223,-150.0,0.000128,2]
[420043429,1775631046233,-150.0,0.00012807,2]
[420043430,1775631046243,-150.0,0.00012807,2]
[420043431,1775631046254,-830.49918647,0.00012812,2]
[420043432,1775631046265,-3000.0,0.00012812,2]
[420043433,1775631046274,-503.61823881,0.00012812,2]
[420043434,1775631046284,-150.0,0.00012818,2]
[420043435,1775631046294,-150.0,0.00012823,2]
[420043436,1775631046303,-150.0,0.00012828,2]
[420043437,1775631046314,-150.0,0.00012834,2]
[420043438,1775631046324,-150.0,0.00012844,2]
[420043439,1775631046334,-150.0,0.00012844,2]
[420043440,1775631046344,-150.0,0.00012846,2]
[420043441,1775631046355,-150.0,0.00012851,2]
[420043442,1775631046365,-150.0,0.00012862,2]
[420043443,1775631046375,-150.0,0.00012867,2]
[420043444,1775631046385,-150.0,0.00012867,2]
[420043445,1775631046395,-150.0,0.00012874,2]
[420043446,1775631046405,-150.0,0.00012878,2]
[420043447,1775631046415,-150.0,0.00012882,2]
[420043448,1775631046425,-150.0,0.00012882,2]
[420043449,1775631046436,-150.0,0.00012897,2]
[420043450,1775631046446,-159.06,0.000129,2]
[420043451,1775631046457,-403.274866,0.000129,2]
[420043452,1775631046466,-150.0,0.00012901,2]
[420043453,1775631046476,-150.0,0.00012902,2]
[420043454,1775631046486,-150.0,0.00012905,2]
[420043455,1775631046496,-150.0,0.00012919,2]
[420043456,1775631046506,-150.0,0.00012919,2]
[420043457,1775631046516,-150.0,0.00012929,2]
[420043458,1775631046526,-150.0,0.00012931,2]
[420043459,1775631046536,-150.0,0.00012932,2]
[420043460,1775631046545,-150.0,0.00012934,2]
[420043461,1775631046556,-150.0,0.00012956,2]
[420043462,1775631046566,-150.0,0.00012956,2]
[420043463,1775631046577,-150.0,0.00012957,2]
[420043465,1775631046587,-150.0,0.0001296,2]
[420043467,1775631046597,-150.0,0.00012965,2]
[420043469,1775631046608,-150.0,0.00012968,2]
[420043471,1775631046618,-150.0,0.00012968,2]
[420043473,1775631046629,-150.0,0.00012985,2]
[420043474,1775631046639,-150.0,0.00012987,2]
[420043475,1775631046649,-250.0,0.00012987,2]
[420043476,1775631046660,-150.0,0.00012994,2]
[420043477,1775631046670,-150.0,0.00012994,2]
[420043478,1775631046680,-150.0,0.00013,2]
[420043479,1775631046691,-250.0,0.00013,2]
[420043480,1775631046701,-150.0,0.00013001,2]
[420043481,1775631046711,-150.0,0.00013013,2]
[420043482,1775631046721,-150.0,0.00013014,2]
[420043483,1775631046731,-150.0,0.00013031,2]
[420043484,1775631046740,-150.0,0.00013031,2]
[420043485,1775631046750,-150.0,0.00013034,2]
[420043486,1775631046760,-150.0,0.00013035,2]
[420043487,1775631046770,-150.0,0.00013041,2]
[420043488,1775631046780,-150.0,0.00013041,2]
[420043489,1775631046790,-163.54373564,0.00013068,2]
[420043490,1775631046800,-277.86809384,0.00013068,2]
[420043491,1775631046810,-202.16587278,0.00013068,2]
[420043492,1775631046820,-257.21753865,0.00013068,2]
[420043493,1775631046831,-154.96470644,0.00013068,2]
[420043494,1775631046841,-262.25985033,0.00013068,2]
[420043495,1775631046851,-235.51154759,0.00013068,2]
[420043496,1775631046862,-213.91542621,0.00013068,2]
[420043497,1775631046872,-160.91577892,0.00013068,2]
[420043498,1775631046881,-267.96405061,0.00013068,2]
[420043499,1775631046895,-503.45185304,0.00013073,2]
[420043500,1775631046905,-154.31,0.00013075,2]
[420043501,1775631046914,-1406.714486,0.00013164,2]
[420043502,1775631046924,-823.0,0.00013189,2]
[420043504,1775631046934,-3292.0,0.00013189,2]
[420043505,1775631046944,-503.75016468,0.0001336,2]
[420043506,1775631046954,-823.0,0.00013385,2]
[420043507,1775631046963,-736.0,0.00013388,2]
[420043508,1775631046973,-159.0,0.000134,2]
[420043509,1775631046982,-400.0,0.00013411,2]
[420043510,1775631046992,-400.0,0.00013411,2]
[420043511,1775631047001,-400.0,0.00013411,2]
[420043512,1775631047011,-400.0,0.00013411,2]
[420043513,1775631047021,-400.0,0.00013411,2]
[420043514,1775631047030,-189.1554,0.000135,2]
[420043515,1775631047040,-9891.79784251,0.000135,7]
[420043516,1775631047055,-464.89674742,0.00013688,2]
[420043517,1775631047065,-501.50073946,0.00013698,2]
[420043518,1775631047075,-500.0,0.00013698,2]
[420043519,1775631047085,-500.0,0.00013698,2]
[420043520,1775631047094,-500.0,0.00013698,2]
[420043521,1775631047104,-500.0,0.00013698,2]
[420043522,1775631047115,-500.0,0.00013698,2]
[420043523,1775631047124,-500.0,0.00013698,2]
[420043524,1775631047134,-500.0,0.00013698,2]
[420043525,1775631047144,-500.0,0.00013698,2]
[420043526,1775631047154,-419.40847116,0.00013698,2]
[420043527,1775631047165,-500.0,0.00013698,2]
[420043528,1775631047175,-500.0,0.00013698,2]
[420043529,1775631047184,-500.45174561,0.00013698,2]
[420043530,1775631047194,-500.0,0.00013698,2]
[420043531,1775631047203,-500.0,0.00013698,2]
[420043532,1775631047213,-500.0,0.00013698,2]
[420043533,1775631047222,-500.0,0.00013698,2]
[420043534,1775631047232,-406.01852309,0.00013698,2]
[420043535,1775631047242,-500.0,0.00013698,2]
[420043536,1775631047251,-500.0,0.00013698,2]
[420043537,1775631047261,-500.0,0.00013698,2]
[420043538,1775631047271,-500.0,0.00013698,2]
[420043539,1775631047280,-500.0,0.00013698,2]
[420043540,1775631047290,-500.0,0.00013698,2]
[420043541,1775631047300,-500.0,0.00013698,2]
[420043542,1775631047310,-500.0,0.00013698,2]
[420043543,1775631047320,-500.0,0.00013698,2]
[420043544,1775631047330,-500.0,0.00013698,2]
[420043545,1775631047341,-500.0,0.00013698,2]
[420043546,1775631047350,-500.0,0.00013698,2]
[420043547,1775631047360,-392.00957995,0.00013698,2]
[420043548,1775631047371,-500.0,0.00013698,2]